[Event "Early-Titled-Tuesday-Blitz-February-06-2024"]
[Site "Chess.com"]
[Date "2024.02.06"]
[Round "7"]
[White "AccioChess"]
[Black "Arlo2024"]
[Result "0-1"]
[WhiteElo "2394"]
[BlackElo "2303"]
[TimeControl "180+1"]
[EndTime "9:18:33 PST"]
[Termination "Arlo2024 won on time"]

1. e4 {[%clk 0:03:00.9]} 1... e6 {[%clk 0:03:00]} 2. d4 {[%clk 0:03:00]} 2... d5
{[%clk 0:03:00.5]} 3. Nc3 {[%clk 0:03:00.5]} 3... dxe4 {[%clk 0:03:01.4]} 4.
Nxe4 {[%clk 0:03:00.2]} 4... Nd7 {[%clk 0:03:02.2]} 5. Nf3 {[%clk 0:03:00.1]}
5... Ngf6 {[%clk 0:03:03.1]} 6. Bd3 {[%clk 0:02:59.8]} 6... Nxe4 {[%clk
0:03:03.1]} 7. Bxe4 {[%clk 0:03:00]} 7... Nf6 {[%clk 0:03:04]} 8. Bd3 {[%clk
0:03:00.4]} 8... b6 {[%clk 0:03:04.3]} 9. O-O {[%clk 0:02:59.8]} 9... Bb7 {[%clk
0:03:04.8]} 10. Ne5 {[%clk 0:03:00.1]} 10... Qd5 {[%clk 0:03:03.6]} 11. Nf3
{[%clk 0:02:41.3]} 11... Bd6 {[%clk 0:03:03.3]} 12. h3 {[%clk 0:02:36.1]} 12...
O-O-O {[%clk 0:03:00.1]} 13. Qe2 {[%clk 0:02:28.6]} 13... Qh5 {[%clk 0:02:51.4]}
14. Ba6 {[%clk 0:02:25.9]} 14... Qd5 {[%clk 0:02:22.6]} 15. Bxb7+ {[%clk
0:02:24.3]} 15... Kxb7 {[%clk 0:02:21.3]} 16. a4 {[%clk 0:02:22.6]} 16... a5
{[%clk 0:02:19.7]} 17. c4 {[%clk 0:02:21.5]} 17... Qe4 {[%clk 0:02:19.6]} 18.
Be3 {[%clk 0:02:14.9]} 18... c5 {[%clk 0:02:12.2]} 19. b4 {[%clk 0:02:01.2]}
19... cxb4 {[%clk 0:02:08.7]} 20. c5 {[%clk 0:02:00.8]} 20... Bc7 {[%clk
0:02:03.4]} 21. cxb6 {[%clk 0:02:00.1]} 21... Bxb6 {[%clk 0:02:01.1]} 22. Nd2
{[%clk 0:01:55.1]} 22... Qd5 {[%clk 0:01:48.1]} 23. Nc4 {[%clk 0:01:54.2]} 23...
Ne4 {[%clk 0:01:35.7]} 24. Nxb6 {[%clk 0:01:50.6]} 24... Kxb6 {[%clk 0:01:29.9]}
25. Rfc1 {[%clk 0:01:48.8]} 25... Rc8 {[%clk 0:01:21.9]} 26. Rc5 {[%clk
0:01:41.6]} 26... Nc3 {[%clk 0:01:13.4]} 27. Qd3 {[%clk 0:01:19.4]} 27... Rxc5
{[%clk 0:01:02.8]} 28. dxc5+ {[%clk 0:01:19.2]} 28... Kb7 {[%clk 0:00:40.6]} 29.
c6+ {[%clk 0:01:18.9]} 29... Qxc6 {[%clk 0:00:33.3]} 30. Qd2 {[%clk 0:01:04.6]}
30... e5 {[%clk 0:00:22.3]} 31. Kh1 {[%clk 0:01:03.8]} 31... f6 {[%clk
0:00:20.4]} 32. Rc1 {[%clk 0:00:59.7]} 32... Rc8 {[%clk 0:00:19.4]} 33. Qd3
{[%clk 0:00:59.7]} 33... Qxa4 {[%clk 0:00:18.6]} 34. Qxh7 {[%clk 0:00:55.8]}
34... Rc7 {[%clk 0:00:18.6]} 35. Qg8 {[%clk 0:00:54.9]} 35... Qb5 {[%clk
0:00:18.1]} 36. Qd8 {[%clk 0:00:50.8]} 36... a4 {[%clk 0:00:18]} 37. Bd2 {[%clk
0:00:40]} 37... a3 {[%clk 0:00:17.6]} 38. Bxc3 {[%clk 0:00:37.2]} 38... b3
{[%clk 0:00:15.5]} 39. Qd2 {[%clk 0:00:32.5]} 39... b2 {[%clk 0:00:15.4]} 40.
Rb1 {[%clk 0:00:31.7]} 40... Rxc3 {[%clk 0:00:12]} 41. Qxc3 {[%clk 0:00:31.1]}
41... a2 {[%clk 0:00:12.5]} 42. Qf3+ {[%clk 0:00:16.7]} 42... Kb6 {[%clk
0:00:10.3]} 43. Qe3+ {[%clk 0:00:16.4]} 43... Kb7 {[%clk 0:00:10.8]} 44. Qe4+
{[%clk 0:00:16.2]} 44... Kb8 {[%clk 0:00:11.1]} 45. Kh2 {[%clk 0:00:11.8]} 45...
axb1=Q {[%clk 0:00:10.9]} 46. Qxb1 {[%clk 0:00:11.6]} 46... Qb4 {[%clk 0:00:10]}
47. g3 {[%clk 0:00:07.9]} 47... Qb6 {[%clk 0:00:09.2]} 48. Kg2 {[%clk
0:00:06.9]} 48... Qb4 {[%clk 0:00:09.1]} 49. h4 {[%clk 0:00:05.1]} 49... f5
{[%clk 0:00:09.5]} 50. h5 {[%clk 0:00:01.7]} 50... Qe4+ {[%clk 0:00:08.1]} 0-1

[Event "Early-Titled-Tuesday-Blitz-February-06-2024"]
[Site "Chess.com"]
[Date "2024.02.06"]
[Round "7"]
[White "KbzasDavid16"]
[Black "wild3000"]
[Result "1-0"]
[WhiteElo "2559"]
[BlackElo "2370"]
[TimeControl "180+1"]
[EndTime "9:18:35 PST"]
[Termination "KbzasDavid16 won by checkmate"]

1. d4 {[%clk 0:03:00.9]} 1... d5 {[%clk 0:03:00.1]} 2. Nf3 {[%clk 0:03:00.2]}
2... Nf6 {[%clk 0:02:59.3]} 3. g3 {[%clk 0:02:57.3]} 3... e6 {[%clk 0:02:59.1]}
4. Bg2 {[%clk 0:02:57.3]} 4... c5 {[%clk 0:02:57.8]} 5. O-O {[%clk 0:02:55.8]}
5... Nc6 {[%clk 0:02:56.6]} 6. c4 {[%clk 0:02:49.6]} 6... dxc4 {[%clk 0:02:56]}
7. dxc5 {[%clk 0:02:49.1]} 7... Qxd1 {[%clk 0:02:55.1]} 8. Rxd1 {[%clk
0:02:48.8]} 8... Bxc5 {[%clk 0:02:55.2]} 9. Nbd2 {[%clk 0:02:48.6]} 9... c3
{[%clk 0:02:45.9]} 10. bxc3 {[%clk 0:02:49.5]} 10... O-O {[%clk 0:02:45.8]} 11.
Nb3 {[%clk 0:02:48.4]} 11... Be7 {[%clk 0:02:42]} 12. Nfd4 {[%clk 0:02:46.3]}
12... Bd7 {[%clk 0:02:24]} 13. e4 {[%clk 0:02:20.9]} 13... Nxd4 {[%clk
0:02:09.1]} 14. cxd4 {[%clk 0:02:17.5]} 14... Rac8 {[%clk 0:01:57.5]} 15. Be3
{[%clk 0:01:36.1]} 15... b6 {[%clk 0:01:57]} 16. h3 {[%clk 0:01:23.1]} 16... Ba3
{[%clk 0:01:50.8]} 17. d5 {[%clk 0:01:10.2]} 17... exd5 {[%clk 0:01:32.6]} 18.
e5 {[%clk 0:01:09]} 18... Ne8 {[%clk 0:01:21.1]} 19. Rxd5 {[%clk 0:01:07.4]}
19... Be6 {[%clk 0:01:17.5]} 20. Rd4 {[%clk 0:00:57.9]} 20... Bb2 {[%clk
0:01:14.8]} 21. Rad1 {[%clk 0:00:54.2]} 21... Bxd4 {[%clk 0:01:14]} 22. Nxd4
{[%clk 0:00:55.1]} 22... Bxa2 {[%clk 0:01:10.8]} 23. Ra1 {[%clk 0:00:49.4]}
23... Bc4 {[%clk 0:01:10.4]} 24. Rxa7 {[%clk 0:00:47.9]} 24... b5 {[%clk
0:01:06]} 25. Nc6 {[%clk 0:00:46]} 25... Kh8 {[%clk 0:00:59.1]} 26. Bc5 {[%clk
0:00:35.9]} 26... Rg8 {[%clk 0:00:39.8]} 27. Bb4 {[%clk 0:00:33.1]} 27... Nc7
{[%clk 0:00:29.7]} 28. Ne7 {[%clk 0:00:30.4]} 28... Be6 {[%clk 0:00:16.5]} 29.
f4 {[%clk 0:00:16.5]} 29... g6 {[%clk 0:00:15.8]} 30. g4 {[%clk 0:00:14.7]}
30... Rge8 {[%clk 0:00:13.9]} 31. Be4 {[%clk 0:00:07.9]} 31... Rxe7 {[%clk
0:00:12.1]} 32. Bxe7 {[%clk 0:00:07.7]} 32... Kg7 {[%clk 0:00:10.9]} 33. Bd6
{[%clk 0:00:07.4]} 33... Nd5 {[%clk 0:00:10.1]} 34. f5 {[%clk 0:00:07.4]} 34...
gxf5 {[%clk 0:00:09.4]} 35. gxf5 {[%clk 0:00:08.3]} 35... Rc1+ {[%clk
0:00:08.5]} 36. Kf2 {[%clk 0:00:07.6]} 36... Nc3 {[%clk 0:00:07.3]} 37. f6+
{[%clk 0:00:02.8]} 37... Kh6 {[%clk 0:00:07]} 38. Bf8+ {[%clk 0:00:03.4]} 38...
Kg5 {[%clk 0:00:07.1]} 39. Bf3 {[%clk 0:00:02.1]} 39... Kf4 {[%clk 0:00:07.1]}
40. Bh6+ {[%clk 0:00:02]} 40... Kxe5 {[%clk 0:00:06.9]} 41. Bxc1 {[%clk
0:00:02.1]} 41... Bc4 {[%clk 0:00:06.6]} 42. Bb2 {[%clk 0:00:02.7]} 42... Kd4
{[%clk 0:00:06.1]} 43. Rd7+ {[%clk 0:00:02.5]} 43... Bd5 {[%clk 0:00:05.5]} 44.
Rxd5+ {[%clk 0:00:02.8]} 44... Kc4 {[%clk 0:00:06.3]} 45. Bxc3 {[%clk
0:00:03.7]} 45... b4 {[%clk 0:00:06.2]} 46. Bxb4 {[%clk 0:00:04.1]} 46... Kxb4
{[%clk 0:00:06.5]} 47. Rd7 {[%clk 0:00:04.7]} 47... Kc5 {[%clk 0:00:07.4]} 48.
Rxf7 {[%clk 0:00:05.2]} 48... Kd6 {[%clk 0:00:08.3]} 49. Rxh7 {[%clk 0:00:05.8]}
49... Ke5 {[%clk 0:00:09.2]} 50. Rg7 {[%clk 0:00:06]} 50... Kxf6 {[%clk
0:00:10.1]} 51. Rg4 {[%clk 0:00:06.7]} 51... Kf5 {[%clk 0:00:10.4]} 52. h4
{[%clk 0:00:07.6]} 52... Ke5 {[%clk 0:00:11.3]} 53. h5 {[%clk 0:00:08.5]} 53...
Kf6 {[%clk 0:00:12.2]} 54. h6 {[%clk 0:00:09.4]} 54... Kf7 {[%clk 0:00:13.1]}
55. h7 {[%clk 0:00:10.3]} 55... Ke7 {[%clk 0:00:14]} 56. h8=Q {[%clk 0:00:10.5]}
56... Kf7 {[%clk 0:00:14.9]} 57. Qh5+ {[%clk 0:00:09.7]} 57... Ke6 {[%clk
0:00:15.2]} 58. Rg6+ {[%clk 0:00:10.1]} 58... Ke7 {[%clk 0:00:16.1]} 59. Qh7+
{[%clk 0:00:10.3]} 59... Kf8 {[%clk 0:00:17]} 60. Rg8# {[%clk 0:00:11.2]} 1-0

[Event "Early-Titled-Tuesday-Blitz-February-06-2024"]
[Site "Chess.com"]
[Date "2024.02.06"]
[Round "7"]
[White "tylityli"]
[Black "Kapitan_Bayan"]
[Result "1/2-1/2"]
[WhiteElo "2253"]
[BlackElo "2382"]
[TimeControl "180+1"]
[EndTime "9:18:38 PST"]
[Termination "Game drawn by repetition"]

1. d4 {[%clk 0:03:00.9]} 1... d5 {[%clk 0:02:59.5]} 2. c4 {[%clk 0:03:00.7]}
2... dxc4 {[%clk 0:02:59.3]} 3. Nf3 {[%clk 0:02:59]} 3... Nf6 {[%clk 0:02:59.2]}
4. e3 {[%clk 0:02:59.3]} 4... c5 {[%clk 0:02:56.6]} 5. Bxc4 {[%clk 0:02:58.7]}
5... e6 {[%clk 0:02:55.3]} 6. O-O {[%clk 0:02:58.1]} 6... a6 {[%clk 0:02:55.4]}
7. Qe2 {[%clk 0:02:55.1]} 7... b5 {[%clk 0:02:54.4]} 8. Bb3 {[%clk 0:02:54.5]}
8... Bb7 {[%clk 0:02:46.8]} 9. Nc3 {[%clk 0:02:51.3]} 9... Nbd7 {[%clk
0:02:35.3]} 10. Rd1 {[%clk 0:02:47.7]} 10... Qc7 {[%clk 0:02:22.5]} 11. d5
{[%clk 0:02:31.6]} 11... c4 {[%clk 0:02:08]} 12. dxe6 {[%clk 0:02:29.7]} 12...
fxe6 {[%clk 0:02:01.4]} 13. Bc2 {[%clk 0:02:26.5]} 13... Bd6 {[%clk 0:01:49.8]}
14. e4 {[%clk 0:02:20.6]} 14... Ne5 {[%clk 0:01:32]} 15. Nd4 {[%clk 0:02:16.8]}
15... Bc8 {[%clk 0:01:17.6]} 16. f4 {[%clk 0:02:09.9]} 16... Nc6 {[%clk
0:01:05.6]} 17. Nxc6 {[%clk 0:01:48.8]} 17... Qxc6 {[%clk 0:01:03.9]} 18. e5
{[%clk 0:01:49]} 18... Bc5+ {[%clk 0:01:03.7]} 19. Be3 {[%clk 0:01:49.2]} 19...
Nd5 {[%clk 0:00:52.1]} 20. Nxd5 {[%clk 0:00:59.3]} 20... exd5 {[%clk 0:00:50.4]}
21. Qh5+ {[%clk 0:00:46]} 21... Kd8 {[%clk 0:00:38.1]} 22. Qf3 {[%clk
0:00:44.5]} 22... Be6 {[%clk 0:00:32.4]} 23. f5 {[%clk 0:00:40.3]} 23... Rf8
{[%clk 0:00:30]} 24. Bxc5 {[%clk 0:00:31.8]} 24... Qxc5+ {[%clk 0:00:29.7]} 25.
Kh1 {[%clk 0:00:32.4]} 25... Kc7 {[%clk 0:00:21.9]} 26. Qg4 {[%clk 0:00:32.1]}
26... Bd7 {[%clk 0:00:17.3]} 27. e6 {[%clk 0:00:25.4]} 27... Bc6 {[%clk
0:00:17.3]} 28. Qxg7+ {[%clk 0:00:24.8]} 28... Kb6 {[%clk 0:00:17.7]} 29. Qe5
{[%clk 0:00:14.5]} 29... Rae8 {[%clk 0:00:12.1]} 30. Qd4 {[%clk 0:00:12.7]}
30... Qxd4 {[%clk 0:00:11.6]} 31. Rxd4 {[%clk 0:00:13.6]} 31... Kc5 {[%clk
0:00:11]} 32. Rad1 {[%clk 0:00:13]} 32... Rf6 {[%clk 0:00:08.4]} 33. g4 {[%clk
0:00:11.6]} 33... h6 {[%clk 0:00:07.9]} 34. Kg2 {[%clk 0:00:09.9]} 34... Rg8
{[%clk 0:00:05.5]} 35. Kf3 {[%clk 0:00:09.7]} 35... Re8 {[%clk 0:00:03.5]} 36.
h3 {[%clk 0:00:09.7]} 36... Rexe6 {[%clk 0:00:03.1]} 37. Kf4 {[%clk 0:00:07.6]}
37... Re7 {[%clk 0:00:02.7]} 38. R1d2 {[%clk 0:00:07.1]} 38... Ref7 {[%clk
0:00:02.6]} 39. h4 {[%clk 0:00:07]} 39... Bd7 {[%clk 0:00:02.2]} 40. g5 {[%clk
0:00:05.7]} 40... hxg5+ {[%clk 0:00:02.1]} 41. hxg5 {[%clk 0:00:05.7]} 41...
Rxf5+ {[%clk 0:00:01.9]} 42. Bxf5 {[%clk 0:00:05.8]} 42... Rxf5+ {[%clk
0:00:02.2]} 43. Kg3 {[%clk 0:00:06]} 43... Rxg5+ {[%clk 0:00:02.5]} 44. Kf3
{[%clk 0:00:06.5]} 44... Rf5+ {[%clk 0:00:02.6]} 45. Ke3 {[%clk 0:00:06.1]}
45... Re5+ {[%clk 0:00:02.9]} 46. Kf4 {[%clk 0:00:05.3]} 46... Rf5+ {[%clk
0:00:03.3]} 47. Ke3 {[%clk 0:00:05.7]} 47... Re5+ {[%clk 0:00:03.8]} 48. Kf4
{[%clk 0:00:06.2]} 48... Rf5+ {[%clk 0:00:04.4]} 49. Kg3 {[%clk 0:00:06.3]}
49... Rg5+ {[%clk 0:00:04.7]} 50. Kf4 {[%clk 0:00:06.5]} 50... Rf5+ {[%clk
0:00:04.8]} 1/2-1/2

[Event "Early-Titled-Tuesday-Blitz-February-06-2024"]
[Site "Chess.com"]
[Date "2024.02.06"]
[Round "7"]
[White "HittingRookBottom"]
[Black "ItsCheckM8Mate"]
[Result "0-1"]
[WhiteElo "1999"]
[BlackElo "2379"]
[TimeControl "180+1"]
[EndTime "9:18:39 PST"]
[Termination "ItsCheckM8Mate won by resignation"]

1. e4 {[%clk 0:03:00.5]} 1... c6 {[%clk 0:02:56.7]} 2. Nf3 {[%clk 0:03:00.6]}
2... d5 {[%clk 0:02:56.7]} 3. exd5 {[%clk 0:03:01.5]} 3... cxd5 {[%clk
0:02:56.9]} 4. d4 {[%clk 0:03:02.3]} 4... Nc6 {[%clk 0:02:57.1]} 5. Bb5 {[%clk
0:03:02.8]} 5... Nf6 {[%clk 0:02:48.8]} 6. O-O {[%clk 0:03:02.6]} 6... Bg4
{[%clk 0:02:48.3]} 7. h3 {[%clk 0:03:02.6]} 7... Bh5 {[%clk 0:02:46.3]} 8. c4
{[%clk 0:02:58.9]} 8... Bxf3 {[%clk 0:02:36.1]} 9. Qxf3 {[%clk 0:02:56.4]} 9...
e6 {[%clk 0:02:36.4]} 10. cxd5 {[%clk 0:02:55.7]} 10... Qxd5 {[%clk 0:02:35.7]}
11. Qxd5 {[%clk 0:02:55.3]} 11... Nxd5 {[%clk 0:02:35.7]} 12. Bxc6+ {[%clk
0:02:54]} 12... bxc6 {[%clk 0:02:36.2]} 13. Nc3 {[%clk 0:02:52.6]} 13... Rb8
{[%clk 0:02:34.3]} 14. Nxd5 {[%clk 0:02:52.2]} 14... cxd5 {[%clk 0:02:33.6]} 15.
b3 {[%clk 0:02:52.9]} 15... Bd6 {[%clk 0:02:29.2]} 16. Re1 {[%clk 0:02:49]}
16... Kd7 {[%clk 0:02:16.9]} 17. Bd2 {[%clk 0:02:47.2]} 17... Ba3 {[%clk
0:02:13.4]} 18. Rab1 {[%clk 0:02:43.6]} 18... Rhc8 {[%clk 0:02:11.2]} 19. b4
{[%clk 0:02:42.2]} 19... Rc2 {[%clk 0:02:09.5]} 20. Red1 {[%clk 0:02:21.2]}
20... Rxa2 {[%clk 0:02:07.2]} 21. Rb3 {[%clk 0:02:21.1]} 21... Rc8 {[%clk
0:01:59.2]} 22. Be1 {[%clk 0:02:11.8]} 22... Rcc2 {[%clk 0:01:57]} 23. Rf3
{[%clk 0:02:08.1]} 23... Ke8 {[%clk 0:01:55.4]} 24. Rdd3 {[%clk 0:01:58.7]}
24... Bb2 {[%clk 0:01:48.6]} 25. Rg3 {[%clk 0:01:43]} 25... g6 {[%clk
0:01:47.8]} 26. Rge3 {[%clk 0:01:38.5]} 26... Ra1 {[%clk 0:01:41.1]} 27. Kh2
{[%clk 0:01:35.3]} 27... Rc4 {[%clk 0:01:39.7]} 28. Re2 {[%clk 0:01:29.3]} 28...
Bxd4 {[%clk 0:01:36.7]} 29. b5 {[%clk 0:01:27.5]} 29... Bb6 {[%clk 0:01:33.2]}
30. Rxd5 {[%clk 0:01:26.3]} 30... Bc7+ {[%clk 0:01:26.6]} 31. g3 {[%clk
0:01:24.5]} 31... Bb6 {[%clk 0:01:15.5]} 32. Kg2 {[%clk 0:01:24]} 32... Rac1
{[%clk 0:01:10.4]} 33. Rd3 {[%clk 0:01:13.5]} 33... Rb1 {[%clk 0:01:06.3]} 34.
Red2 {[%clk 0:01:03.1]} 34... Rxb5 {[%clk 0:01:04.4]} 35. Rd6 {[%clk 0:00:55.9]}
35... Rb1 {[%clk 0:01:02.1]} 36. Rd1 {[%clk 0:00:54.9]} 36... Rxd1 {[%clk
0:01:00.5]} 37. Rxd1 {[%clk 0:00:55.8]} 37... Rc2 {[%clk 0:01:01]} 38. Kf1
{[%clk 0:00:54.9]} 38... h5 {[%clk 0:01:00.1]} 39. Ra1 {[%clk 0:00:51.7]} 39...
Kd7 {[%clk 0:00:56.7]} 40. Ra3 {[%clk 0:00:50.7]} 40... Kc6 {[%clk 0:00:54.6]}
41. Rf3 {[%clk 0:00:49.1]} 41... f5 {[%clk 0:00:54.6]} 42. Rd3 {[%clk
0:00:48.1]} 42... a5 {[%clk 0:00:53.4]} 43. Rd1 {[%clk 0:00:43.7]} 43... a4
{[%clk 0:00:49.6]} 44. Rd3 {[%clk 0:00:44]} 44... Bc5 {[%clk 0:00:47.9]} 45. Rc3
{[%clk 0:00:39.1]} 45... Rxc3 {[%clk 0:00:47.6]} 46. Bxc3 {[%clk 0:00:39.5]}
46... Kd5 {[%clk 0:00:46.3]} 47. Ke2 {[%clk 0:00:40.1]} 47... Bd4 {[%clk
0:00:44.6]} 48. Bb4 {[%clk 0:00:40.5]} 48... Bb2 {[%clk 0:00:44.6]} 49. Kd3
{[%clk 0:00:35.1]} 49... a3 {[%clk 0:00:43.2]} 50. Kc2 {[%clk 0:00:35.7]} 50...
Kc4 {[%clk 0:00:43.3]} 51. Be7 {[%clk 0:00:35.7]} 51... Bd4 {[%clk 0:00:40.1]}
52. f3 {[%clk 0:00:35.4]} 52... Bf2 {[%clk 0:00:37.4]} 53. Bxa3 {[%clk
0:00:35.1]} 53... Bxg3 {[%clk 0:00:37.7]} 54. Kd2 {[%clk 0:00:35.1]} 54... Be5
{[%clk 0:00:34.8]} 55. Ke2 {[%clk 0:00:35.3]} 55... Kd5 {[%clk 0:00:32.5]} 56.
Be7 {[%clk 0:00:35.4]} 56... Bd4 {[%clk 0:00:32.4]} 57. Kd3 {[%clk 0:00:35]}
57... Bc5 {[%clk 0:00:31.8]} 58. Bf6 {[%clk 0:00:35]} 58... e5 {[%clk
0:00:31.3]} 59. Ke2 {[%clk 0:00:35.5]} 59... e4 {[%clk 0:00:28.6]} 60. fxe4+
{[%clk 0:00:35.2]} 60... Kxe4 {[%clk 0:00:29.5]} 61. Bg7 {[%clk 0:00:34.6]}
61... f4 {[%clk 0:00:29.5]} 62. Kf1 {[%clk 0:00:34.8]} 62... Kf3 {[%clk
0:00:29.3]} 63. Bc3 {[%clk 0:00:34.3]} 63... Be3 {[%clk 0:00:29.3]} 64. Be5
{[%clk 0:00:32.8]} 64... Kg3 {[%clk 0:00:29.4]} 65. Ke2 {[%clk 0:00:32.8]} 65...
Kxh3 {[%clk 0:00:28.6]} 66. Kf3 {[%clk 0:00:32.9]} 66... g5 {[%clk 0:00:28.8]}
67. Ke4 {[%clk 0:00:31.1]} 67... Kg2 {[%clk 0:00:27.2]} 68. Bf6 {[%clk 0:00:30]}
68... g4 {[%clk 0:00:27.6]} 69. Bg5 {[%clk 0:00:30.3]} 69... Kg3 {[%clk
0:00:25.1]} 70. Kd3 {[%clk 0:00:29.9]} 70... Bc5 {[%clk 0:00:23.6]} 71. Ke4
{[%clk 0:00:30.1]} 71... f3 {[%clk 0:00:23.4]} 72. Kd3 {[%clk 0:00:26.7]} 72...
f2 {[%clk 0:00:22.5]} 0-1

[Event "Early-Titled-Tuesday-Blitz-February-06-2024"]
[Site "Chess.com"]
[Date "2024.02.06"]
[Round "7"]
[White "Sanyura"]
[Black "amanjazu"]
[Result "1-0"]
[WhiteElo "2686"]
[BlackElo "2464"]
[TimeControl "180+1"]
[EndTime "9:18:40 PST"]
[Termination "Sanyura won by resignation"]

1. Nf3 {[%clk 0:02:55.3]} 1... Nf6 {[%clk 0:02:58.6]} 2. g3 {[%clk 0:02:55]}
2... g6 {[%clk 0:02:59.5]} 3. Bg2 {[%clk 0:02:55.1]} 3... Bg7 {[%clk 0:03:00.4]}
4. O-O {[%clk 0:02:55.6]} 4... O-O {[%clk 0:03:01.3]} 5. d4 {[%clk 0:02:56]}
5... d6 {[%clk 0:03:02.2]} 6. c4 {[%clk 0:02:56]} 6... c5 {[%clk 0:03:02.9]} 7.
Nc3 {[%clk 0:02:56.6]} 7... Nc6 {[%clk 0:03:00.9]} 8. dxc5 {[%clk 0:02:56.8]}
8... dxc5 {[%clk 0:03:00.7]} 9. Be3 {[%clk 0:02:57.4]} 9... Qa5 {[%clk
0:02:59.1]} 10. Qa4 {[%clk 0:02:56.1]} 10... Ng4 {[%clk 0:02:46.1]} 11. Qxa5
{[%clk 0:02:50.2]} 11... Nxa5 {[%clk 0:02:47]} 12. Bxc5 {[%clk 0:02:50.8]} 12...
Nxc4 {[%clk 0:02:47]} 13. Nd5 {[%clk 0:02:41.4]} 13... Kh8 {[%clk 0:02:21.3]}
14. Nc7 {[%clk 0:02:37.9]} 14... Rb8 {[%clk 0:02:18.2]} 15. Bxa7 {[%clk
0:02:38]} 15... Bd7 {[%clk 0:02:12]} 16. Bxb8 {[%clk 0:02:38]} 16... Rxb8 {[%clk
0:02:12.9]} 17. h3 {[%clk 0:02:25.2]} 17... Nge5 {[%clk 0:02:11.1]} 18. Nxe5
{[%clk 0:02:24.9]} 18... Bxe5 {[%clk 0:02:12]} 19. Nd5 {[%clk 0:02:21.7]} 19...
e6 {[%clk 0:02:06.2]} 20. Rac1 {[%clk 0:02:17.5]} 20... exd5 {[%clk 0:02:04.3]}
21. Bxd5 {[%clk 0:02:16.8]} 21... Nxb2 {[%clk 0:01:59.1]} 22. Bxf7 {[%clk
0:02:14.8]} 22... Bxh3 {[%clk 0:01:57.7]} 23. Rfe1 {[%clk 0:02:13.6]} 23... Rf8
{[%clk 0:01:51.5]} 24. Bb3 {[%clk 0:01:56.3]} 24... Bd4 {[%clk 0:01:47.4]} 25.
e3 {[%clk 0:01:56.6]} 25... Be5 {[%clk 0:01:44.3]} 26. Rc2 {[%clk 0:01:34]}
26... Nd3 {[%clk 0:01:39.6]} 27. Rd1 {[%clk 0:01:33.9]} 27... Bf5 {[%clk
0:01:30.1]} 28. Rcd2 {[%clk 0:01:34.1]} 28... Nb4 {[%clk 0:01:11.7]} 29. Rd8
{[%clk 0:01:18.8]} 29... Kg7 {[%clk 0:01:09.5]} 30. Rxf8 {[%clk 0:01:11.3]}
30... Kxf8 {[%clk 0:01:10.4]} 31. a3 {[%clk 0:01:04.7]} 31... Nc6 {[%clk
0:01:03.6]} 32. Bd5 {[%clk 0:01:04.7]} 32... Ke7 {[%clk 0:00:57.7]} 33. e4
{[%clk 0:00:56.4]} 33... Bg4 {[%clk 0:00:54.6]} 34. Rb1 {[%clk 0:00:55.7]} 34...
Bc8 {[%clk 0:00:54.3]} 35. a4 {[%clk 0:00:50.7]} 35... Kd8 {[%clk 0:00:52.3]}
36. f4 {[%clk 0:00:46.7]} 36... Bd4+ {[%clk 0:00:50.7]} 37. Kg2 {[%clk
0:00:46.3]} 37... Kc7 {[%clk 0:00:51.6]} 38. Rd1 {[%clk 0:00:36.2]} 38... Bg7
{[%clk 0:00:45.3]} 39. Rh1 {[%clk 0:00:30.1]} 39... h5 {[%clk 0:00:42.3]} 40. f5
{[%clk 0:00:30.5]} 40... Ne7 {[%clk 0:00:09.7]} 41. fxg6 {[%clk 0:00:20.9]}
41... Bg4 {[%clk 0:00:09.3]} 42. Rc1+ {[%clk 0:00:20.4]} 42... Kd6 {[%clk
0:00:07.8]} 43. Bxb7 {[%clk 0:00:20.2]} 43... Nxg6 {[%clk 0:00:07]} 44. Rc6+
{[%clk 0:00:20.2]} 44... Ke7 {[%clk 0:00:04.7]} 45. Rxg6 {[%clk 0:00:21.1]}
45... Bd4 {[%clk 0:00:05.6]} 46. Rc6 {[%clk 0:00:18.2]} 46... Kd7 {[%clk
0:00:05.4]} 47. a5 {[%clk 0:00:18.1]} 47... Be2 {[%clk 0:00:04.1]} 48. a6 {[%clk
0:00:18.5]} 48... Bb5 {[%clk 0:00:04.2]} 49. Rc2 {[%clk 0:00:17.3]} 49... Bb6
{[%clk 0:00:03.9]} 50. Rb2 {[%clk 0:00:17.3]} 50... Bxa6 {[%clk 0:00:04.4]} 51.
Rxb6 {[%clk 0:00:17.2]} 51... Bxb7 {[%clk 0:00:04.4]} 52. Rxb7+ {[%clk
0:00:17.7]} 52... Ke6 {[%clk 0:00:05.3]} 53. Rh7 {[%clk 0:00:18.2]} 53... Ke5
{[%clk 0:00:06.2]} 54. Rxh5+ {[%clk 0:00:18.4]} 54... Kxe4 {[%clk 0:00:07.1]}
55. g4 {[%clk 0:00:18.8]} 55... Ke3 {[%clk 0:00:08]} 56. Rf5 {[%clk 0:00:18.9]}
56... Ke4 {[%clk 0:00:08.2]} 57. Rf3 {[%clk 0:00:19.4]} 57... Ke5 {[%clk
0:00:09.1]} 58. g5 {[%clk 0:00:20.3]} 58... Ke6 {[%clk 0:00:09.8]} 59. g6 {[%clk
0:00:21.2]} 59... Ke7 {[%clk 0:00:10.7]} 60. g7 {[%clk 0:00:21.7]} 60... Ke6
{[%clk 0:00:11.6]} 61. g8=Q+ {[%clk 0:00:22.1]} 61... Ke5 {[%clk 0:00:12.5]} 62.
Qe8+ {[%clk 0:00:20.3]} 1-0